Workbook

Sheet Instructions

Sheet Example
B3: Construction Budget Submission Form
B6: Version | C6: 4.4
B7: Step 1: Fill out a description of the entire construction project.
D8: ="Status: "&IF(RF_Status="","",RF_Status) -> Status: Initial Budget
B10: Scope of Work: | D10: Start Date: | E10: 2019-01-01 | F10: Total Budget:
B11: This property is located in the New York, NY area and will be a complete gut and flip. We will be putting in new drywall, hardwood flooring, tile in the kitchen, and carpet in the bedrooms. We will be putting in all new mid-grade fixtures in the bathroom. We will be painting the exterior of the property, putting in new fencing, and putting in new sod. | D11: Estimated Completion Date: | E11: 2019-07-01 | F11: =IFERROR(SUM(AMT_Totals)-SUM(AMT_CatSubtotals),"$0 .00 ") -> $71,292.00
D12: Expected Draws: | E12: 5
E14: Current | F14: Projected
D15: Total Square Feet: | E15: 2200 | F15: 2200
D16: Rooms/Units: | E16: 10 | F16: 10
D17: Bedrooms: | E17: 3 | F17: 3
D18: Bathrooms: | E18: 2 | F18: 2
D19: Kitchens: | E19: 1 | F19: 1
B21: Property Address: | C21: 123 Main St, New York, NY 10030
B25: Step 2: Fill in each line item with the description of the construction cost, the amount, the estimated date of completion, and the draw item name (if necessary).
I27: Lima One Capital Budget Review
B28: Item Number | C28: Category / Draw Item | D28: Description | E28: Amount | F28: Estimated Completion Date | I28: Recommended Budget | J28: Comments
C30: Soft Costs
B31: Column1 | C31: Column2 | D31: Column3 | E31: Column4 | F31: Column5 | G31: Column6
B32: 1000-2 | C32: Temp Gas* | D32: (Enter your description here) | G32: =IFERROR(IF(OR(Table162[[#This Row],[Column4]]="",Table162[[#This Row],[Column4]]=0),"",ROUND(Table162[[#This Row],[Column4]],2)),"") ->  | I32: =IF(AMT_Recommend1="","",AMT_Recommend1) ->  | J32: =IF(FR_Comments="","",FR_Comments) -> 
B33: 1000-3 | C33: Temp Power* | G33: =IFERROR(IF(OR(Table162[[#This Row],[Column4]]="",Table162[[#This Row],[Column4]]=0),"",ROUND(Table162[[#This Row],[Column4]],2)),"") -> 
B34: 1000-4 | C34: Temp Toilet | G34: =IFERROR(IF(OR(Table162[[#This Row],[Column4]]="",Table162[[#This Row],[Column4]]=0),"",ROUND(Table162[[#This Row],[Column4]],2)),"") -> 
B35: 1000-5 | C35: Architecutral Fees | G35: =IFERROR(IF(OR(Table162[[#This Row],[Column4]]="",Table162[[#This Row],[Column4]]=0),"",ROUND(Table162[[#This Row],[Column4]],2)),"") -> 
B36: 1000-6 | C36: Engineering Fees | G36: =IFERROR(IF(OR(Table162[[#This Row],[Column4]]="",Table162[[#This Row],[Column4]]=0),"",ROUND(Table162[[#This Row],[Column4]],2)),"") -> 
B37: 1000-7 | C37: Building Permit* | D37: Plumbing, electrical, Framing, HVAC | E37: 1,200.00 | F37: 2019-09-01 | G37: =IFERROR(IF(OR(Table162[[#This Row],[Column4]]="",Table162[[#This Row],[Column4]]=0),"",ROUND(Table162[[#This Row],[Column4]],2)),"") -> 1200
B38: 1000-8 | C38: Impact Fees | G38: =IFERROR(IF(OR(Table162[[#This Row],[Column4]]="",Table162[[#This Row],[Column4]]=0),"",ROUND(Table162[[#This Row],[Column4]],2)),"") -> 
B39: 1000-9 | C39: Survey | G39: =IFERROR(IF(OR(Table162[[#This Row],[Column4]]="",Table162[[#This Row],[Column4]]=0),"",ROUND(Table162[[#This Row],[Column4]],2)),"") -> 
B40: 1000-10 | C40: Survey/Drawings/Plans* | G40: =IFERROR(IF(OR(Table162[[#This Row],[Column4]]="",Table162[[#This Row],[Column4]]=0),"",ROUND(Table162[[#This Row],[Column4]],2)),"") -> 
B41: 1000-11 | C41: Erosion Fence | G41: =IFERROR(IF(OR(Table162[[#This Row],[Column4]]="",Table162[[#This Row],[Column4]]=0),"",ROUND(Table162[[#This Row],[Column4]],2)),"") -> 
B42: 1000-12 | C42: (Enter your line item here) | G42: =IFERROR(IF(OR(Table162[[#This Row],[Column4]]="",Table162[[#This Row],[Column4]]=0),"",ROUND(Table162[[#This Row],[Column4]],2)),"") -> 
B43: 1000-13 | C43: (Enter your line item here) | G43: =IFERROR(IF(OR(Table162[[#This Row],[Column4]]="",Table162[[#This Row],[Column4]]=0),"",ROUND(Table162[[#This Row],[Column4]],2)),"") -> 
C44: Total Soft Costs | E44: =G44 -> 1,200.00 | G44: =SUM(G32:G43) -> 1,200.00
C46: Demolition- Trashout
B47: 2000-1 | C47: Demolition* | D47: Gut the entire home | E47: 2,500.00 | F47: 2019-09-18 | G47: =IFERROR(IF(OR(Table162[[#This Row],[Column4]]="",Table162[[#This Row],[Column4]]=0),"",ROUND(Table162[[#This Row],[Column4]],2)),"") -> 2500
B48: 2000-2 | C48: Trashout | G48: =IFERROR(IF(OR(Table162[[#This Row],[Column4]]="",Table162[[#This Row],[Column4]]=0),"",ROUND(Table162[[#This Row],[Column4]],2)),"") -> 
B49: 2000-3 | C49: Dumpster | D49: 4 30 yard dumpsters | E49: 2,000.00 | F49: 2019-09-15 | G49: =IFERROR(IF(OR(Table162[[#This Row],[Column4]]="",Table162[[#This Row],[Column4]]=0),"",ROUND(Table162[[#This Row],[Column4]],2)),"") -> 2000
B50: 2000-4 | C50: (Enter your line item here) | G50: =IFERROR(IF(OR(Table162[[#This Row],[Column4]]="",Table162[[#This Row],[Column4]]=0),"",ROUND(Table162[[#This Row],[Column4]],2)),"") -> 
B51: 2000-5 | C51: (Enter your line item here) | G51: =IFERROR(IF(OR(Table162[[#This Row],[Column4]]="",Table162[[#This Row],[Column4]]=0),"",ROUND(Table162[[#This Row],[Column4]],2)),"") -> 
C52: Total Trashout | E52: =G52 -> 4,500.00 | G52: =SUM(G47:G51) -> 4,500.00
C54: Site Work
B55: 3000-1 | C55: Grading* | D55: (Enter your description here) | G55: =IFERROR(IF(OR(Table162[[#This Row],[Column4]]="",Table162[[#This Row],[Column4]]=0),"",ROUND(Table162[[#This Row],[Column4]],2)),"") -> 
B56: 3000-2 | C56: Underground * | G56: =IFERROR(IF(OR(Table162[[#This Row],[Column4]]="",Table162[[#This Row],[Column4]]=0),"",ROUND(Table162[[#This Row],[Column4]],2)),"") -> 
B57: 3000-3 | C57: Conduit | G57: =IFERROR(IF(OR(Table162[[#This Row],[Column4]]="",Table162[[#This Row],[Column4]]=0),"",ROUND(Table162[[#This Row],[Column4]],2)),"") -> 
B58: 3000-4 | C58: Water Lines* | D58: Replacing water lines | E58: 3,750.00 | F58: 2019-11-01 | G58: =IFERROR(IF(OR(Table162[[#This Row],[Column4]]="",Table162[[#This Row],[Column4]]=0),"",ROUND(Table162[[#This Row],[Column4]],2)),"") -> 3750
B59: 3000-5 | C59: Septic * | G59: =IFERROR(IF(OR(Table162[[#This Row],[Column4]]="",Table162[[#This Row],[Column4]]=0),"",ROUND(Table162[[#This Row],[Column4]],2)),"") -> 
B60: 3000-6 | C60: Sewer Lines* | G60: =IFERROR(IF(OR(Table162[[#This Row],[Column4]]="",Table162[[#This Row],[Column4]]=0),"",ROUND(Table162[[#This Row],[Column4]],2)),"") -> 
B61: 3000-7 | C61: Landscape | G61: =IFERROR(IF(OR(Table162[[#This Row],[Column4]]="",Table162[[#This Row],[Column4]]=0),"",ROUND(Table162[[#This Row],[Column4]],2)),"") -> 
B62: 3000-8 | C62: Fence | G62: =IFERROR(IF(OR(Table162[[#This Row],[Column4]]="",Table162[[#This Row],[Column4]]=0),"",ROUND(Table162[[#This Row],[Column4]],2)),"") -> 
B63: 3000-9 | C63: Concrete | G63: =IFERROR(IF(OR(Table162[[#This Row],[Column4]]="",Table162[[#This Row],[Column4]]=0),"",ROUND(Table162[[#This Row],[Column4]],2)),"") -> 
B64: 3000-10 | C64: Asphalt | G64: =IFERROR(IF(OR(Table162[[#This Row],[Column4]]="",Table162[[#This Row],[Column4]]=0),"",ROUND(Table162[[#This Row],[Column4]],2)),"") -> 
B65: 3000-11 | C65: Hardscape | D65: 7.5 ft wooden fencing in back yard | E65: 1,750.00 | F65: 2019-12-01 | G65: =IFERROR(IF(OR(Table162[[#This Row],[Column4]]="",Table162[[#This Row],[Column4]]=0),"",ROUND(Table162[[#This Row],[Column4]],2)),"") -> 1750
B66: 3000-12 | C66: Softscape | D66: Sod the entire front and back yard | E66: 2,500.00 | F66: 2020-01-15 | G66: =IFERROR(IF(OR(Table162[[#This Row],[Column4]]="",Table162[[#This Row],[Column4]]=0),"",ROUND(Table162[[#This Row],[Column4]],2)),"") -> 2500
B67: 3000-13 | C67: Pool/Spa | G67: =IFERROR(IF(OR(Table162[[#This Row],[Column4]]="",Table162[[#This Row],[Column4]]=0),"",ROUND(Table162[[#This Row],[Column4]],2)),"") -> 
B68: 3000-14 | C68: (Enter your line item here) | G68: =IFERROR(IF(OR(Table162[[#This Row],[Column4]]="",Table162[[#This Row],[Column4]]=0),"",ROUND(Table162[[#This Row],[Column4]],2)),"") -> 
B69: 3000-15 | C69: (Enter your line item here) | G69: =IFERROR(IF(OR(Table162[[#This Row],[Column4]]="",Table162[[#This Row],[Column4]]=0),"",ROUND(Table162[[#This Row],[Column4]],2)),"") -> 
C70: Total Yard-Landscape | E70: =G70 -> 8,000.00 | G70: =SUM(G55:G69) -> 8,000.00
C72: Foundation
B73: 4000-1 | C73: Footings* | D73: (Enter your description here) | G73: =IFERROR(IF(OR(Table162[[#This Row],[Column4]]="",Table162[[#This Row],[Column4]]=0),"",ROUND(Table162[[#This Row],[Column4]],2)),"") -> 
B74: 4000-2 | C74: PreTreat | G74: =IFERROR(IF(OR(Table162[[#This Row],[Column4]]="",Table162[[#This Row],[Column4]]=0),"",ROUND(Table162[[#This Row],[Column4]],2)),"") -> 
B75: 4000-3 | C75: Foundation - Post Tension Cables | G75: =IFERROR(IF(OR(Table162[[#This Row],[Column4]]="",Table162[[#This Row],[Column4]]=0),"",ROUND(Table162[[#This Row],[Column4]],2)),"") -> 
B76: 4000-4 | C76: Foundation * | G76: =IFERROR(IF(OR(Table162[[#This Row],[Column4]]="",Table162[[#This Row],[Column4]]=0),"",ROUND(Table162[[#This Row],[Column4]],2)),"") -> 
B77: 4000-5 | C77: Excavation* | G77: =IFERROR(IF(OR(Table162[[#This Row],[Column4]]="",Table162[[#This Row],[Column4]]=0),"",ROUND(Table162[[#This Row],[Column4]],2)),"") -> 
B78: 4000-6 | C78: Pour | G78: =IFERROR(IF(OR(Table162[[#This Row],[Column4]]="",Table162[[#This Row],[Column4]]=0),"",ROUND(Table162[[#This Row],[Column4]],2)),"") -> 
B79: 4000-7 | C79: Repair | G79: =IFERROR(IF(OR(Table162[[#This Row],[Column4]]="",Table162[[#This Row],[Column4]]=0),"",ROUND(Table162[[#This Row],[Column4]],2)),"") -> 
B80: 4000-8 | C80: (Enter your line item here) | G80: =IFERROR(IF(OR(Table162[[#This Row],[Column4]]="",Table162[[#This Row],[Column4]]=0),"",ROUND(Table162[[#This Row],[Column4]],2)),"") -> 
B81: 4000-9 | C81: (Enter your line item here) | G81: =IFERROR(IF(OR(Table162[[#This Row],[Column4]]="",Table162[[#This Row],[Column4]]=0),"",ROUND(Table162[[#This Row],[Column4]],2)),"") -> 
C82: Total Foundation | E82: =G82 -> 0 | G82: =SUM(G73:G81) -> 0
C84: Structure
B85: 5000-1 | C85: Framing * | D85: (Enter your description here) | G85: =IFERROR(IF(OR(Table162[[#This Row],[Column4]]="",Table162[[#This Row],[Column4]]=0),"",ROUND(Table162[[#This Row],[Column4]],2)),"") -> 
B86: 5000-2 | C86: Roof Trusses | G86: =IFERROR(IF(OR(Table162[[#This Row],[Column4]]="",Table162[[#This Row],[Column4]]=0),"",ROUND(Table162[[#This Row],[Column4]],2)),"") -> 
B87: 5000-3 | C87: Windows | D87: Replace all windows (16 New) | E87: 5,600.00 | F87: 2019-10-15 | G87: =IFERROR(IF(OR(Table162[[#This Row],[Column4]]="",Table162[[#This Row],[Column4]]=0),"",ROUND(Table162[[#This Row],[Column4]],2)),"") -> 5600
B88: 5000-4 | C88: Joist System | G88: =IFERROR(IF(OR(Table162[[#This Row],[Column4]]="",Table162[[#This Row],[Column4]]=0),"",ROUND(Table162[[#This Row],[Column4]],2)),"") -> 
B89: 5000-5 | C89: (Enter your line item here) | G89: =IFERROR(IF(OR(Table162[[#This Row],[Column4]]="",Table162[[#This Row],[Column4]]=0),"",ROUND(Table162[[#This Row],[Column4]],2)),"") -> 
B90: 5000-6 | C90: (Enter your line item here) | G90: =IFERROR(IF(OR(Table162[[#This Row],[Column4]]="",Table162[[#This Row],[Column4]]=0),"",ROUND(Table162[[#This Row],[Column4]],2)),"") -> 
C91: Total Structure | E91: =G91 -> 5,600.00 | G91: =SUM(G85:G90) -> 5,600.00
C93: Exterior
B94: 6000-1 | C94: Roofing* | D94: (Enter your description here) | G94: =IFERROR(IF(OR(Table162[[#This Row],[Column4]]="",Table162[[#This Row],[Column4]]=0),"",ROUND(Table162[[#This Row],[Column4]],2)),"") -> 
B95: 6000-2 | C95: Flashing | G95: =IFERROR(IF(OR(Table162[[#This Row],[Column4]]="",Table162[[#This Row],[Column4]]=0),"",ROUND(Table162[[#This Row],[Column4]],2)),"") -> 
B96: 6000-3 | C96: Siding | D96: Repair any damaged siding | E96: 500.00 | F96: 2020-01-20 | G96: =IFERROR(IF(OR(Table162[[#This Row],[Column4]]="",Table162[[#This Row],[Column4]]=0),"",ROUND(Table162[[#This Row],[Column4]],2)),"") -> 500
B97: 6000-4 | C97: Stucco | G97: =IFERROR(IF(OR(Table162[[#This Row],[Column4]]="",Table162[[#This Row],[Column4]]=0),"",ROUND(Table162[[#This Row],[Column4]],2)),"") -> 
B98: 6000-5 | C98: Garage Door | G98: =IFERROR(IF(OR(Table162[[#This Row],[Column4]]="",Table162[[#This Row],[Column4]]=0),"",ROUND(Table162[[#This Row],[Column4]],2)),"") -> 
B99: 6000-6 | C99: Gutters/Soffit/Fascia | G99: =IFERROR(IF(OR(Table162[[#This Row],[Column4]]="",Table162[[#This Row],[Column4]]=0),"",ROUND(Table162[[#This Row],[Column4]],2)),"") -> 
B100: 6000-7 | C100: Solar | G100: =IFERROR(IF(OR(Table162[[#This Row],[Column4]]="",Table162[[#This Row],[Column4]]=0),"",ROUND(Table162[[#This Row],[Column4]],2)),"") -> 
B101: 6000-8 | C101: Deck | G101: =IFERROR(IF(OR(Table162[[#This Row],[Column4]]="",Table162[[#This Row],[Column4]]=0),"",ROUND(Table162[[#This Row],[Column4]],2)),"") -> 
B102: 6000-9 | C102: Driveway | G102: =IFERROR(IF(OR(Table162[[#This Row],[Column4]]="",Table162[[#This Row],[Column4]]=0),"",ROUND(Table162[[#This Row],[Column4]],2)),"") -> 
B103: 6000-10 | C103: Masonry Veneer | G103: =IFERROR(IF(OR(Table162[[#This Row],[Column4]]="",Table162[[#This Row],[Column4]]=0),"",ROUND(Table162[[#This Row],[Column4]],2)),"") -> 
B104: 6000-11 | C104: Painting - Exterior | D104: Paint Exterior | E104: 2,250.00 | F104: 2020-01-15 | G104: =IFERROR(IF(OR(Table162[[#This Row],[Column4]]="",Table162[[#This Row],[Column4]]=0),"",ROUND(Table162[[#This Row],[Column4]],2)),"") -> 2250
B105: 6000-12 | C105: Porch | G105: =IFERROR(IF(OR(Table162[[#This Row],[Column4]]="",Table162[[#This Row],[Column4]]=0),"",ROUND(Table162[[#This Row],[Column4]],2)),"") -> 
B106: 6000-13 | C106: (Enter your line item here) | G106: =IFERROR(IF(OR(Table162[[#This Row],[Column4]]="",Table162[[#This Row],[Column4]]=0),"",ROUND(Table162[[#This Row],[Column4]],2)),"") -> 
B107: 6000-14 | C107: (Enter your line item here) | G107: =IFERROR(IF(OR(Table162[[#This Row],[Column4]]="",Table162[[#This Row],[Column4]]=0),"",ROUND(Table162[[#This Row],[Column4]],2)),"") -> 
C108: Total Exterior | E108: =G108 -> 2,750.00 | G108: =SUM(G94:G107) -> 2,750.00
C110: Systems
B111: 7000-1 | C111: Rough HVAC* | D111: Duct work installed | E111: 2,000.00 | F111: 2019-12-15 | G111: =IFERROR(IF(OR(Table162[[#This Row],[Column4]]="",Table162[[#This Row],[Column4]]=0),"",ROUND(Table162[[#This Row],[Column4]],2)),"") -> 2000
B112: 7000-2 | C112: Final HVAC | D112: Unit installed | E112: 2,500.00 | F112: 2019-12-15 | G112: =IFERROR(IF(OR(Table162[[#This Row],[Column4]]="",Table162[[#This Row],[Column4]]=0),"",ROUND(Table162[[#This Row],[Column4]],2)),"") -> 2500
B113: 7000-3 | C113: Underslab Plumbing | G113: =IFERROR(IF(OR(Table162[[#This Row],[Column4]]="",Table162[[#This Row],[Column4]]=0),"",ROUND(Table162[[#This Row],[Column4]],2)),"") -> 
B114: 7000-4 | C114: Rough Plumbing* | D114: All new plumbing in kitchen and bathrooms | E114: 5,500.00 | F114: 2019-11-15 | G114: =IFERROR(IF(OR(Table162[[#This Row],[Column4]]="",Table162[[#This Row],[Column4]]=0),"",ROUND(Table162[[#This Row],[Column4]],2)),"") -> 5500
B115: 7000-5 | C115: Plumbing - Fixtures | D115: Bath Tub * 2 (With Shower); 2 toilets | E115: 1,650.00 | F115: 2019-12-15 | G115: =IFERROR(IF(OR(Table162[[#This Row],[Column4]]="",Table162[[#This Row],[Column4]]=0),"",ROUND(Table162[[#This Row],[Column4]],2)),"") -> 1650
B116: 7000-6 | C116: Fire Suppression | G116: =IFERROR(IF(OR(Table162[[#This Row],[Column4]]="",Table162[[#This Row],[Column4]]=0),"",ROUND(Table162[[#This Row],[Column4]],2)),"") -> 
B117: 7000-7 | C117: Underslab Electrical | G117: =IFERROR(IF(OR(Table162[[#This Row],[Column4]]="",Table162[[#This Row],[Column4]]=0),"",ROUND(Table162[[#This Row],[Column4]],2)),"") -> 
B118: 7000-8 | C118: Rough Electrical* | D118: Run new wire throughout the house & new panel | E118: 3,500.00 | F118: 2019-11-15 | G118: =IFERROR(IF(OR(Table162[[#This Row],[Column4]]="",Table162[[#This Row],[Column4]]=0),"",ROUND(Table162[[#This Row],[Column4]],2)),"") -> 3500
B119: 7000-9 | C119: Electrical Fixtures | D119: Canned lights; oulet covers; other lights | E119: 1,000.00 | F119: 2020-02-01 | G119: =IFERROR(IF(OR(Table162[[#This Row],[Column4]]="",Table162[[#This Row],[Column4]]=0),"",ROUND(Table162[[#This Row],[Column4]],2)),"") -> 1000
B120: 7000-10 | C120: Water Heater | G120: =IFERROR(IF(OR(Table162[[#This Row],[Column4]]="",Table162[[#This Row],[Column4]]=0),"",ROUND(Table162[[#This Row],[Column4]],2)),"") -> 
B121: 7000-11 | C121: (Enter your line item here) | G121: =IFERROR(IF(OR(Table162[[#This Row],[Column4]]="",Table162[[#This Row],[Column4]]=0),"",ROUND(Table162[[#This Row],[Column4]],2)),"") -> 
B122: 7000-12 | C122: (Enter your line item here) | G122: =IFERROR(IF(OR(Table162[[#This Row],[Column4]]="",Table162[[#This Row],[Column4]]=0),"",ROUND(Table162[[#This Row],[Column4]],2)),"") -> 
C123: Total Systems | E123: =G123 -> 16,150.00 | G123: =SUM(G111:G122) -> 16,150.00
C125: Interior
B126: 8000-1 | C126: Fireplace | D126: (Enter your description here) | G126: =IFERROR(IF(OR(Table162[[#This Row],[Column4]]="",Table162[[#This Row],[Column4]]=0),"",ROUND(Table162[[#This Row],[Column4]],2)),"") -> 
B127: 8000-2 | C127: Insulation | D127: New Insulation | E127: 1,000.00 | F127: 2019-11-01 | G127: =IFERROR(IF(OR(Table162[[#This Row],[Column4]]="",Table162[[#This Row],[Column4]]=0),"",ROUND(Table162[[#This Row],[Column4]],2)),"") -> 1000
B128: 8000-3 | C128: Drywall* | D128: All rooms | E128: 2,750.00 | F128: 2020-03-01 | G128: =IFERROR(IF(OR(Table162[[#This Row],[Column4]]="",Table162[[#This Row],[Column4]]=0),"",ROUND(Table162[[#This Row],[Column4]],2)),"") -> 2750
B129: 8000-4 | C129: Paint-Interior | D129: All Rooms | E129: 4,000.00 | F129: 2020-04-15 | G129: =IFERROR(IF(OR(Table162[[#This Row],[Column4]]="",Table162[[#This Row],[Column4]]=0),"",ROUND(Table162[[#This Row],[Column4]],2)),"") -> 4000
B130: 8000-5 | C130: (Enter your line item here) | G130: =IFERROR(IF(OR(Table162[[#This Row],[Column4]]="",Table162[[#This Row],[Column4]]=0),"",ROUND(Table162[[#This Row],[Column4]],2)),"") -> 
B131: 8000-6 | C131: (Enter your line item here) | G131: =IFERROR(IF(OR(Table162[[#This Row],[Column4]]="",Table162[[#This Row],[Column4]]=0),"",ROUND(Table162[[#This Row],[Column4]],2)),"") -> 
C132: Total Interior | E132: =G132 -> 7,750.00 | G132: =SUM(G126:G131) -> 7,750.00
C134: Finishes
B135: 9000-1 | C135: Finish Carpentry | D135: (Enter your description here) | G135: =IFERROR(IF(OR(Table162[[#This Row],[Column4]]="",Table162[[#This Row],[Column4]]=0),"",ROUND(Table162[[#This Row],[Column4]],2)),"") -> 
B136: 9000-2 | C136: Interior Doors | D136: 16 4 panel doors | E136: =16*125 -> 2000 | F136: 2020-02-15 | G136: =IFERROR(IF(OR(Table162[[#This Row],[Column4]]="",Table162[[#This Row],[Column4]]=0),"",ROUND(Table162[[#This Row],[Column4]],2)),"") -> 2000
B137: 9000-3 | C137: Finish Hardware | D137: Cabinet and door hardware | E137: 300 | F137: 2020-03-01 | G137: =IFERROR(IF(OR(Table162[[#This Row],[Column4]]="",Table162[[#This Row],[Column4]]=0),"",ROUND(Table162[[#This Row],[Column4]],2)),"") -> 300
B138: 9000-4 | C138: Exterior Doors | D138: Replace both exterior doors | E138: 750 | F138: 2020-10-15 | G138: =IFERROR(IF(OR(Table162[[#This Row],[Column4]]="",Table162[[#This Row],[Column4]]=0),"",ROUND(Table162[[#This Row],[Column4]],2)),"") -> 750
B139: 9000-5 | C139: Mirrors | D139: Vanity mirrors X2 | E139: 225 | F139: 2020-02-15 | G139: =IFERROR(IF(OR(Table162[[#This Row],[Column4]]="",Table162[[#This Row],[Column4]]=0),"",ROUND(Table162[[#This Row],[Column4]],2)),"") -> 225
B140: 9000-6 | C140: Shower Doors | G140: =IFERROR(IF(OR(Table162[[#This Row],[Column4]]="",Table162[[#This Row],[Column4]]=0),"",ROUND(Table162[[#This Row],[Column4]],2)),"") -> 
B141: 9000-7 | C141: Cabinets | D141: All new cherry cabinets | E141: 6,667.00 | F141: 2020-03-01 | G141: =IFERROR(IF(OR(Table162[[#This Row],[Column4]]="",Table162[[#This Row],[Column4]]=0),"",ROUND(Table162[[#This Row],[Column4]],2)),"") -> 6667
B142: 9000-8 | C142: Countertops | D142: Granite | E142: 2,050.00 | F142: 2020-03-15 | G142: =IFERROR(IF(OR(Table162[[#This Row],[Column4]]="",Table162[[#This Row],[Column4]]=0),"",ROUND(Table162[[#This Row],[Column4]],2)),"") -> 2050
B143: 9000-9 | C143: Millwork | D143: New Throughout House | E143: 4,195.00 | F143: 2020-02-15 | G143: =IFERROR(IF(OR(Table162[[#This Row],[Column4]]="",Table162[[#This Row],[Column4]]=0),"",ROUND(Table162[[#This Row],[Column4]],2)),"") -> 4195
B144: 9000-10 | C144: (Enter your line item here) | G144: =IFERROR(IF(OR(Table162[[#This Row],[Column4]]="",Table162[[#This Row],[Column4]]=0),"",ROUND(Table162[[#This Row],[Column4]],2)),"") -> 
B145: 9000-11 | C145: (Enter your line item here) | G145: =IFERROR(IF(OR(Table162[[#This Row],[Column4]]="",Table162[[#This Row],[Column4]]=0),"",ROUND(Table162[[#This Row],[Column4]],2)),"") -> 
C146: Total Finishes | E146: =G146 -> 16,187.00 | G146: =SUM(G135:G145) -> 16,187.00
C148: Flooring
B149: 10000-1 | C149: Tile | D149: Kitchen and bathrooms | E149: 1,725.00 | F149: 2020-03-01 | G149: =IFERROR(IF(OR(Table162[[#This Row],[Column4]]="",Table162[[#This Row],[Column4]]=0),"",ROUND(Table162[[#This Row],[Column4]],2)),"") -> 1725
B150: 10000-2 | C150: Marble | G150: =IFERROR(IF(OR(Table162[[#This Row],[Column4]]="",Table162[[#This Row],[Column4]]=0),"",ROUND(Table162[[#This Row],[Column4]],2)),"") -> 
B151: 10000-3 | C151: Wood Flooring | D151: Hardwood throughout hallways and living room | E151: 3,330.00 | F151: 2020-04-15 | G151: =IFERROR(IF(OR(Table162[[#This Row],[Column4]]="",Table162[[#This Row],[Column4]]=0),"",ROUND(Table162[[#This Row],[Column4]],2)),"") -> 3330
B152: 10000-4 | C152: Carpet | D152: All bedrooms | E152: 1,500.00 | F152: 2020-03-15 | G152: =IFERROR(IF(OR(Table162[[#This Row],[Column4]]="",Table162[[#This Row],[Column4]]=0),"",ROUND(Table162[[#This Row],[Column4]],2)),"") -> 1500
B153: 10000-5 | C153: Vinyl | G153: =IFERROR(IF(OR(Table162[[#This Row],[Column4]]="",Table162[[#This Row],[Column4]]=0),"",ROUND(Table162[[#This Row],[Column4]],2)),"") -> 
B154: 10000-6 | C154: (Enter your line item here) | G154: =IFERROR(IF(OR(Table162[[#This Row],[Column4]]="",Table162[[#This Row],[Column4]]=0),"",ROUND(Table162[[#This Row],[Column4]],2)),"") -> 
B155: 10000-7 | C155: (Enter your line item here) | G155: =IFERROR(IF(OR(Table162[[#This Row],[Column4]]="",Table162[[#This Row],[Column4]]=0),"",ROUND(Table162[[#This Row],[Column4]],2)),"") -> 
C156: Total Flooring | E156: =G156 -> 6,555.00 | G156: =SUM(G149:G155) -> 6,555.00
C158: Appliances
B159: 11000-1 | C159: Range | D159: (Enter your description here) | E159: 500.00 | F159: 2020-05-15 | G159: =IFERROR(IF(OR(Table162[[#This Row],[Column4]]="",Table162[[#This Row],[Column4]]=0),"",ROUND(Table162[[#This Row],[Column4]],2)),"") -> 500
B160: 11000-2 | C160: Cooktop | G160: =IFERROR(IF(OR(Table162[[#This Row],[Column4]]="",Table162[[#This Row],[Column4]]=0),"",ROUND(Table162[[#This Row],[Column4]],2)),"") -> 
B161: 11000-3 | C161: Microwave | E161: 350.00 | F161: 2020-05-15 | G161: =IFERROR(IF(OR(Table162[[#This Row],[Column4]]="",Table162[[#This Row],[Column4]]=0),"",ROUND(Table162[[#This Row],[Column4]],2)),"") -> 350
B162: 11000-4 | C162: Dishwasher | E162: 500.00 | F162: 2020-05-15 | G162: =IFERROR(IF(OR(Table162[[#This Row],[Column4]]="",Table162[[#This Row],[Column4]]=0),"",ROUND(Table162[[#This Row],[Column4]],2)),"") -> 500
B163: 11000-5 | C163: Refrigerator | E163: 750.00 | F163: 2020-05-15 | G163: =IFERROR(IF(OR(Table162[[#This Row],[Column4]]="",Table162[[#This Row],[Column4]]=0),"",ROUND(Table162[[#This Row],[Column4]],2)),"") -> 750
B164: 11000-6 | C164: Package | G164: =IFERROR(IF(OR(Table162[[#This Row],[Column4]]="",Table162[[#This Row],[Column4]]=0),"",ROUND(Table162[[#This Row],[Column4]],2)),"") -> 
B165: 11000-7 | C165: (Enter your line item here) | G165: =IFERROR(IF(OR(Table162[[#This Row],[Column4]]="",Table162[[#This Row],[Column4]]=0),"",ROUND(Table162[[#This Row],[Column4]],2)),"") -> 
B166: 11000-8 | C166: (Enter your line item here) | G166: =IFERROR(IF(OR(Table162[[#This Row],[Column4]]="",Table162[[#This Row],[Column4]]=0),"",ROUND(Table162[[#This Row],[Column4]],2)),"") -> 
C167: Total Appliances | E167: =G167 -> 2,100.00 | G167: =SUM(G159:G166) -> 2,100.00
C169: Final - Misc
B170: 12000-1 | C170: Final Clean | D170: (Enter your description here) | E170: 500.00 | F170: 2020-05-15 | G170: =IFERROR(IF(OR(Table162[[#This Row],[Column4]]="",Table162[[#This Row],[Column4]]=0),"",ROUND(Table162[[#This Row],[Column4]],2)),"") -> 500
B171: 12000-2 | C171: Staging | G171: =IFERROR(IF(OR(Table162[[#This Row],[Column4]]="",Table162[[#This Row],[Column4]]=0),"",ROUND(Table162[[#This Row],[Column4]],2)),"") -> 
B172: 12000-3 | C172: Contingency | G172: =IFERROR(IF(OR(Table162[[#This Row],[Column4]]="",Table162[[#This Row],[Column4]]=0),"",ROUND(Table162[[#This Row],[Column4]],2)),"") -> 
B173: 12000-4 | C173: (Enter your line item here) | G173: =IFERROR(IF(OR(Table162[[#This Row],[Column4]]="",Table162[[#This Row],[Column4]]=0),"",ROUND(Table162[[#This Row],[Column4]],2)),"") -> 
B174: 12000-5 | C174: (Enter your line item here) | G174: =IFERROR(IF(OR(Table162[[#This Row],[Column4]]="",Table162[[#This Row],[Column4]]=0),"",ROUND(Table162[[#This Row],[Column4]],2)),"") -> 
C175: Total Misc. | E175: =G175 -> 500.00 | G175: =SUM(G170:G174) -> 500.00
B177: *THESE ITEMS REQUIRE PERMITS IN MOST JURISDICTIONS. BORROWERS ARE REQUIRED TO ADHERE TO ALL LOCAL LAWS, CODES, REGULATIONS AND REQUIREMENTS AS EXPRESSED IN YOUR LOAN DOCUMENTS.

Sheet Construction Budget
B3: Construction Budget Submission Form
B6: Version | C6: 4.4
B7: Step 1: Fill out a description of the entire construction project.
D8: ="Status: "&IF(RF_Status="","",RF_Status) -> Status: Initial Budget
B10: Scope of Work: | D10: Start Date: | F10: Total Budget:
B11: Please provide a description of the whole project. | D11: Estimated Completion Date: | F11: =IFERROR(SUM(AMT_Totals)-SUM(AMT_CatSubtotals),"$0 .00 ") -> $0.00
D12: Expected Draws:
E14: Current | F14: Projected
D15: Total Square Feet:
D16: Rooms/Units:
D17: Bedrooms:
D18: Bathrooms:
D19: Kitchens:
B21: Property Address:
B25: Step 2: Fill in each line item with the description of the construction cost, the amount, the estimated date of completion, and the draw item name (if necessary).
I27: Lima One Capital Budget Review
B28: Item Number | C28: Category / Draw Item | D28: Description | E28: Amount | F28: Estimated Completion Date | I28: Recommended Budget | J28: Comments
C30: Soft Costs
B31: Column1 | C31: Column2 | D31: Column3 | E31: Column4 | F31: Column5 | G31: Column6
B32: 1000-2 | C32: Temp Gas* | G32: =IFERROR(IF(OR(Table16[[#This Row],[Column4]]="",Table16[[#This Row],[Column4]]=0),"",ROUND(Table16[[#This Row],[Column4]],2)),"") ->  | I32: =IF(AMT_Recommend1="","",AMT_Recommend1) ->  | J32: =IF(FR_Comments="","",FR_Comments) -> 
B33: 1000-3 | C33: Temp Power* | G33: =IFERROR(IF(OR(Table16[[#This Row],[Column4]]="",Table16[[#This Row],[Column4]]=0),"",ROUND(Table16[[#This Row],[Column4]],2)),"") -> 
B34: 1000-4 | C34: Temp Toilet | G34: =IFERROR(IF(OR(Table16[[#This Row],[Column4]]="",Table16[[#This Row],[Column4]]=0),"",ROUND(Table16[[#This Row],[Column4]],2)),"") -> 
B35: 1000-5 | C35: Architecutral Fees | G35: =IFERROR(IF(OR(Table16[[#This Row],[Column4]]="",Table16[[#This Row],[Column4]]=0),"",ROUND(Table16[[#This Row],[Column4]],2)),"") -> 
B36: 1000-6 | C36: Engineering Fees | G36: =IFERROR(IF(OR(Table16[[#This Row],[Column4]]="",Table16[[#This Row],[Column4]]=0),"",ROUND(Table16[[#This Row],[Column4]],2)),"") -> 
B37: 1000-7 | C37: Building Permit* | G37: =IFERROR(IF(OR(Table16[[#This Row],[Column4]]="",Table16[[#This Row],[Column4]]=0),"",ROUND(Table16[[#This Row],[Column4]],2)),"") -> 
B38: 1000-8 | C38: Impact Fees | G38: =IFERROR(IF(OR(Table16[[#This Row],[Column4]]="",Table16[[#This Row],[Column4]]=0),"",ROUND(Table16[[#This Row],[Column4]],2)),"") -> 
B39: 1000-9 | C39: Survey | G39: =IFERROR(IF(OR(Table16[[#This Row],[Column4]]="",Table16[[#This Row],[Column4]]=0),"",ROUND(Table16[[#This Row],[Column4]],2)),"") -> 
B40: 1000-10 | C40: Survey/Drawings/Plans* | G40: =IFERROR(IF(OR(Table16[[#This Row],[Column4]]="",Table16[[#This Row],[Column4]]=0),"",ROUND(Table16[[#This Row],[Column4]],2)),"") -> 
B41: 1000-11 | C41: Erosion Fence | G41: =IFERROR(IF(OR(Table16[[#This Row],[Column4]]="",Table16[[#This Row],[Column4]]=0),"",ROUND(Table16[[#This Row],[Column4]],2)),"") -> 
B42: 1000-12 | C42: (Enter your line item here) | G42: =IFERROR(IF(OR(Table16[[#This Row],[Column4]]="",Table16[[#This Row],[Column4]]=0),"",ROUND(Table16[[#This Row],[Column4]],2)),"") -> 
B43: 1000-13 | C43: (Enter your line item here) | G43: =IFERROR(IF(OR(Table16[[#This Row],[Column4]]="",Table16[[#This Row],[Column4]]=0),"",ROUND(Table16[[#This Row],[Column4]],2)),"") -> 
C44: Total Soft Costs | E44: =G44 -> 0 | G44: =SUM(G32:G43) -> 0
C46: Demolition- Trashout
B47: 2000-1 | C47: Demolition* | G47: =IFERROR(IF(OR(Table16[[#This Row],[Column4]]="",Table16[[#This Row],[Column4]]=0),"",ROUND(Table16[[#This Row],[Column4]],2)),"") -> 
B48: 2000-2 | C48: Trashout | G48: =IFERROR(IF(OR(Table16[[#This Row],[Column4]]="",Table16[[#This Row],[Column4]]=0),"",ROUND(Table16[[#This Row],[Column4]],2)),"") -> 
B49: 2000-3 | C49: Dumpster | G49: =IFERROR(IF(OR(Table16[[#This Row],[Column4]]="",Table16[[#This Row],[Column4]]=0),"",ROUND(Table16[[#This Row],[Column4]],2)),"") -> 
B50: 2000-4 | C50: (Enter your line item here) | G50: =IFERROR(IF(OR(Table16[[#This Row],[Column4]]="",Table16[[#This Row],[Column4]]=0),"",ROUND(Table16[[#This Row],[Column4]],2)),"") -> 
B51: 2000-5 | C51: (Enter your line item here) | G51: =IFERROR(IF(OR(Table16[[#This Row],[Column4]]="",Table16[[#This Row],[Column4]]=0),"",ROUND(Table16[[#This Row],[Column4]],2)),"") -> 
C52: Total Trashout | E52: =G52 -> 0 | G52: =SUM(G47:G51) -> 0
C54: Site Work
B55: 3000-1 | C55: Grading* | G55: =IFERROR(IF(OR(Table16[[#This Row],[Column4]]="",Table16[[#This Row],[Column4]]=0),"",ROUND(Table16[[#This Row],[Column4]],2)),"") -> 
B56: 3000-2 | C56: Underground * | G56: =IFERROR(IF(OR(Table16[[#This Row],[Column4]]="",Table16[[#This Row],[Column4]]=0),"",ROUND(Table16[[#This Row],[Column4]],2)),"") -> 
B57: 3000-3 | C57: Conduit | G57: =IFERROR(IF(OR(Table16[[#This Row],[Column4]]="",Table16[[#This Row],[Column4]]=0),"",ROUND(Table16[[#This Row],[Column4]],2)),"") -> 
B58: 3000-4 | C58: Water Lines* | G58: =IFERROR(IF(OR(Table16[[#This Row],[Column4]]="",Table16[[#This Row],[Column4]]=0),"",ROUND(Table16[[#This Row],[Column4]],2)),"") -> 
B59: 3000-5 | C59: Septic * | G59: =IFERROR(IF(OR(Table16[[#This Row],[Column4]]="",Table16[[#This Row],[Column4]]=0),"",ROUND(Table16[[#This Row],[Column4]],2)),"") -> 
B60: 3000-6 | C60: Sewer Lines* | G60: =IFERROR(IF(OR(Table16[[#This Row],[Column4]]="",Table16[[#This Row],[Column4]]=0),"",ROUND(Table16[[#This Row],[Column4]],2)),"") -> 
B61: 3000-7 | C61: Landscape | G61: =IFERROR(IF(OR(Table16[[#This Row],[Column4]]="",Table16[[#This Row],[Column4]]=0),"",ROUND(Table16[[#This Row],[Column4]],2)),"") -> 
B62: 3000-8 | C62: Fence | G62: =IFERROR(IF(OR(Table16[[#This Row],[Column4]]="",Table16[[#This Row],[Column4]]=0),"",ROUND(Table16[[#This Row],[Column4]],2)),"") -> 
B63: 3000-9 | C63: Concrete | G63: =IFERROR(IF(OR(Table16[[#This Row],[Column4]]="",Table16[[#This Row],[Column4]]=0),"",ROUND(Table16[[#This Row],[Column4]],2)),"") -> 
B64: 3000-10 | C64: Asphalt | G64: =IFERROR(IF(OR(Table16[[#This Row],[Column4]]="",Table16[[#This Row],[Column4]]=0),"",ROUND(Table16[[#This Row],[Column4]],2)),"") -> 
B65: 3000-11 | C65: Hardscape | G65: =IFERROR(IF(OR(Table16[[#This Row],[Column4]]="",Table16[[#This Row],[Column4]]=0),"",ROUND(Table16[[#This Row],[Column4]],2)),"") -> 
B66: 3000-12 | C66: Softscape | G66: =IFERROR(IF(OR(Table16[[#This Row],[Column4]]="",Table16[[#This Row],[Column4]]=0),"",ROUND(Table16[[#This Row],[Column4]],2)),"") -> 
B67: 3000-13 | C67: Pool/Spa | G67: =IFERROR(IF(OR(Table16[[#This Row],[Column4]]="",Table16[[#This Row],[Column4]]=0),"",ROUND(Table16[[#This Row],[Column4]],2)),"") -> 
B68: 3000-14 | C68: (Enter your line item here) | G68: =IFERROR(IF(OR(Table16[[#This Row],[Column4]]="",Table16[[#This Row],[Column4]]=0),"",ROUND(Table16[[#This Row],[Column4]],2)),"") -> 
B69: 3000-15 | C69: (Enter your line item here) | G69: =IFERROR(IF(OR(Table16[[#This Row],[Column4]]="",Table16[[#This Row],[Column4]]=0),"",ROUND(Table16[[#This Row],[Column4]],2)),"") -> 
C70: Total Yard-Landscape | E70: =G70 -> 0 | G70: =SUM(G55:G69) -> 0
C72: Foundation
B73: 4000-1 | C73: Footings* | G73: =IFERROR(IF(OR(Table16[[#This Row],[Column4]]="",Table16[[#This Row],[Column4]]=0),"",ROUND(Table16[[#This Row],[Column4]],2)),"") -> 
B74: 4000-2 | C74: PreTreat | G74: =IFERROR(IF(OR(Table16[[#This Row],[Column4]]="",Table16[[#This Row],[Column4]]=0),"",ROUND(Table16[[#This Row],[Column4]],2)),"") -> 
B75: 4000-3 | C75: Foundation - Post Tension Cables | G75: =IFERROR(IF(OR(Table16[[#This Row],[Column4]]="",Table16[[#This Row],[Column4]]=0),"",ROUND(Table16[[#This Row],[Column4]],2)),"") -> 
B76: 4000-4 | C76: Foundation * | G76: =IFERROR(IF(OR(Table16[[#This Row],[Column4]]="",Table16[[#This Row],[Column4]]=0),"",ROUND(Table16[[#This Row],[Column4]],2)),"") -> 
B77: 4000-5 | C77: Excavation* | G77: =IFERROR(IF(OR(Table16[[#This Row],[Column4]]="",Table16[[#This Row],[Column4]]=0),"",ROUND(Table16[[#This Row],[Column4]],2)),"") -> 
B78: 4000-6 | C78: Pour | G78: =IFERROR(IF(OR(Table16[[#This Row],[Column4]]="",Table16[[#This Row],[Column4]]=0),"",ROUND(Table16[[#This Row],[Column4]],2)),"") -> 
B79: 4000-7 | C79: Repair | G79: =IFERROR(IF(OR(Table16[[#This Row],[Column4]]="",Table16[[#This Row],[Column4]]=0),"",ROUND(Table16[[#This Row],[Column4]],2)),"") -> 
B80: 4000-8 | C80: (Enter your line item here) | G80: =IFERROR(IF(OR(Table16[[#This Row],[Column4]]="",Table16[[#This Row],[Column4]]=0),"",ROUND(Table16[[#This Row],[Column4]],2)),"") -> 
B81: 4000-9 | C81: (Enter your line item here) | G81: =IFERROR(IF(OR(Table16[[#This Row],[Column4]]="",Table16[[#This Row],[Column4]]=0),"",ROUND(Table16[[#This Row],[Column4]],2)),"") -> 
C82: Total Foundation | E82: =G82 -> 0 | G82: =SUM(G73:G81) -> 0
C84: Structure
B85: 5000-1 | C85: Framing * | G85: =IFERROR(IF(OR(Table16[[#This Row],[Column4]]="",Table16[[#This Row],[Column4]]=0),"",ROUND(Table16[[#This Row],[Column4]],2)),"") -> 
B86: 5000-2 | C86: Roof Trusses | G86: =IFERROR(IF(OR(Table16[[#This Row],[Column4]]="",Table16[[#This Row],[Column4]]=0),"",ROUND(Table16[[#This Row],[Column4]],2)),"") -> 
B87: 5000-3 | C87: Windows | G87: =IFERROR(IF(OR(Table16[[#This Row],[Column4]]="",Table16[[#This Row],[Column4]]=0),"",ROUND(Table16[[#This Row],[Column4]],2)),"") -> 
B88: 5000-4 | C88: Joist System | G88: =IFERROR(IF(OR(Table16[[#This Row],[Column4]]="",Table16[[#This Row],[Column4]]=0),"",ROUND(Table16[[#This Row],[Column4]],2)),"") -> 
B89: 5000-5 | C89: (Enter your line item here) | G89: =IFERROR(IF(OR(Table16[[#This Row],[Column4]]="",Table16[[#This Row],[Column4]]=0),"",ROUND(Table16[[#This Row],[Column4]],2)),"") -> 
B90: 5000-6 | C90: (Enter your line item here) | G90: =IFERROR(IF(OR(Table16[[#This Row],[Column4]]="",Table16[[#This Row],[Column4]]=0),"",ROUND(Table16[[#This Row],[Column4]],2)),"") -> 
C91: Total Structure | E91: =G91 -> 0 | G91: =SUM(G85:G90) -> 0
C93: Exterior
B94: 6000-1 | C94: Roofing* | G94: =IFERROR(IF(OR(Table16[[#This Row],[Column4]]="",Table16[[#This Row],[Column4]]=0),"",ROUND(Table16[[#This Row],[Column4]],2)),"") -> 
B95: 6000-2 | C95: Flashing | G95: =IFERROR(IF(OR(Table16[[#This Row],[Column4]]="",Table16[[#This Row],[Column4]]=0),"",ROUND(Table16[[#This Row],[Column4]],2)),"") -> 
B96: 6000-3 | C96: Siding | G96: =IFERROR(IF(OR(Table16[[#This Row],[Column4]]="",Table16[[#This Row],[Column4]]=0),"",ROUND(Table16[[#This Row],[Column4]],2)),"") -> 
B97: 6000-4 | C97: Stucco | G97: =IFERROR(IF(OR(Table16[[#This Row],[Column4]]="",Table16[[#This Row],[Column4]]=0),"",ROUND(Table16[[#This Row],[Column4]],2)),"") -> 
B98: 6000-5 | C98: Garage Door | G98: =IFERROR(IF(OR(Table16[[#This Row],[Column4]]="",Table16[[#This Row],[Column4]]=0),"",ROUND(Table16[[#This Row],[Column4]],2)),"") -> 
B99: 6000-6 | C99: Gutters/Soffit/Fascia | G99: =IFERROR(IF(OR(Table16[[#This Row],[Column4]]="",Table16[[#This Row],[Column4]]=0),"",ROUND(Table16[[#This Row],[Column4]],2)),"") -> 
B100: 6000-7 | C100: Solar | G100: =IFERROR(IF(OR(Table16[[#This Row],[Column4]]="",Table16[[#This Row],[Column4]]=0),"",ROUND(Table16[[#This Row],[Column4]],2)),"") -> 
B101: 6000-8 | C101: Deck | G101: =IFERROR(IF(OR(Table16[[#This Row],[Column4]]="",Table16[[#This Row],[Column4]]=0),"",ROUND(Table16[[#This Row],[Column4]],2)),"") -> 
B102: 6000-9 | C102: Driveway | G102: =IFERROR(IF(OR(Table16[[#This Row],[Column4]]="",Table16[[#This Row],[Column4]]=0),"",ROUND(Table16[[#This Row],[Column4]],2)),"") -> 
B103: 6000-10 | C103: Masonry Veneer | G103: =IFERROR(IF(OR(Table16[[#This Row],[Column4]]="",Table16[[#This Row],[Column4]]=0),"",ROUND(Table16[[#This Row],[Column4]],2)),"") -> 
B104: 6000-11 | C104: Painting - Exterior | G104: =IFERROR(IF(OR(Table16[[#This Row],[Column4]]="",Table16[[#This Row],[Column4]]=0),"",ROUND(Table16[[#This Row],[Column4]],2)),"") -> 
B105: 6000-12 | C105: Porch | G105: =IFERROR(IF(OR(Table16[[#This Row],[Column4]]="",Table16[[#This Row],[Column4]]=0),"",ROUND(Table16[[#This Row],[Column4]],2)),"") -> 
B106: 6000-13 | C106: (Enter your line item here) | G106: =IFERROR(IF(OR(Table16[[#This Row],[Column4]]="",Table16[[#This Row],[Column4]]=0),"",ROUND(Table16[[#This Row],[Column4]],2)),"") -> 
B107: 6000-14 | C107: (Enter your line item here) | G107: =IFERROR(IF(OR(Table16[[#This Row],[Column4]]="",Table16[[#This Row],[Column4]]=0),"",ROUND(Table16[[#This Row],[Column4]],2)),"") -> 
C108: Total Exterior | E108: =G108 -> 0 | G108: =SUM(G94:G107) -> 0
C110: Systems
B111: 7000-1 | C111: Rough HVAC* | G111: =IFERROR(IF(OR(Table16[[#This Row],[Column4]]="",Table16[[#This Row],[Column4]]=0),"",ROUND(Table16[[#This Row],[Column4]],2)),"") -> 
B112: 7000-2 | C112: Final HVAC | G112: =IFERROR(IF(OR(Table16[[#This Row],[Column4]]="",Table16[[#This Row],[Column4]]=0),"",ROUND(Table16[[#This Row],[Column4]],2)),"") -> 
B113: 7000-3 | C113: Underslab Plumbing | G113: =IFERROR(IF(OR(Table16[[#This Row],[Column4]]="",Table16[[#This Row],[Column4]]=0),"",ROUND(Table16[[#This Row],[Column4]],2)),"") -> 
B114: 7000-4 | C114: Rough Plumbing* | G114: =IFERROR(IF(OR(Table16[[#This Row],[Column4]]="",Table16[[#This Row],[Column4]]=0),"",ROUND(Table16[[#This Row],[Column4]],2)),"") -> 
B115: 7000-5 | C115: Plumbing - Fixtures | G115: =IFERROR(IF(OR(Table16[[#This Row],[Column4]]="",Table16[[#This Row],[Column4]]=0),"",ROUND(Table16[[#This Row],[Column4]],2)),"") -> 
B116: 7000-6 | C116: Fire Suppression | G116: =IFERROR(IF(OR(Table16[[#This Row],[Column4]]="",Table16[[#This Row],[Column4]]=0),"",ROUND(Table16[[#This Row],[Column4]],2)),"") -> 
B117: 7000-7 | C117: Underslab Electrical | G117: =IFERROR(IF(OR(Table16[[#This Row],[Column4]]="",Table16[[#This Row],[Column4]]=0),"",ROUND(Table16[[#This Row],[Column4]],2)),"") -> 
B118: 7000-8 | C118: Rough Electrical* | G118: =IFERROR(IF(OR(Table16[[#This Row],[Column4]]="",Table16[[#This Row],[Column4]]=0),"",ROUND(Table16[[#This Row],[Column4]],2)),"") -> 
B119: 7000-9 | C119: Electrical Fixtures | G119: =IFERROR(IF(OR(Table16[[#This Row],[Column4]]="",Table16[[#This Row],[Column4]]=0),"",ROUND(Table16[[#This Row],[Column4]],2)),"") -> 
B120: 7000-10 | C120: Water Heater | G120: =IFERROR(IF(OR(Table16[[#This Row],[Column4]]="",Table16[[#This Row],[Column4]]=0),"",ROUND(Table16[[#This Row],[Column4]],2)),"") -> 
B121: 7000-11 | C121: (Enter your line item here) | G121: =IFERROR(IF(OR(Table16[[#This Row],[Column4]]="",Table16[[#This Row],[Column4]]=0),"",ROUND(Table16[[#This Row],[Column4]],2)),"") -> 
B122: 7000-12 | C122: (Enter your line item here) | G122: =IFERROR(IF(OR(Table16[[#This Row],[Column4]]="",Table16[[#This Row],[Column4]]=0),"",ROUND(Table16[[#This Row],[Column4]],2)),"") -> 
C123: Total Systems | E123: =G123 -> 0 | G123: =SUM(G111:G122) -> 0
C125: Interior
B126: 8000-1 | C126: Fireplace | G126: =IFERROR(IF(OR(Table16[[#This Row],[Column4]]="",Table16[[#This Row],[Column4]]=0),"",ROUND(Table16[[#This Row],[Column4]],2)),"") -> 
B127: 8000-2 | C127: Insulation | G127: =IFERROR(IF(OR(Table16[[#This Row],[Column4]]="",Table16[[#This Row],[Column4]]=0),"",ROUND(Table16[[#This Row],[Column4]],2)),"") -> 
B128: 8000-3 | C128: Drywall* | G128: =IFERROR(IF(OR(Table16[[#This Row],[Column4]]="",Table16[[#This Row],[Column4]]=0),"",ROUND(Table16[[#This Row],[Column4]],2)),"") -> 
B129: 8000-4 | C129: Paint-Interior | G129: =IFERROR(IF(OR(Table16[[#This Row],[Column4]]="",Table16[[#This Row],[Column4]]=0),"",ROUND(Table16[[#This Row],[Column4]],2)),"") -> 
B130: 8000-5 | C130: (Enter your line item here) | G130: =IFERROR(IF(OR(Table16[[#This Row],[Column4]]="",Table16[[#This Row],[Column4]]=0),"",ROUND(Table16[[#This Row],[Column4]],2)),"") -> 
B131: 8000-6 | C131: (Enter your line item here) | G131: =IFERROR(IF(OR(Table16[[#This Row],[Column4]]="",Table16[[#This Row],[Column4]]=0),"",ROUND(Table16[[#This Row],[Column4]],2)),"") -> 
C132: Total Interior | E132: =G132 -> 0 | G132: =SUM(G126:G131) -> 0
C134: Finishes
B135: 9000-1 | C135: Finish Carpentry | G135: =IFERROR(IF(OR(Table16[[#This Row],[Column4]]="",Table16[[#This Row],[Column4]]=0),"",ROUND(Table16[[#This Row],[Column4]],2)),"") -> 
B136: 9000-2 | C136: Interior Doors | G136: =IFERROR(IF(OR(Table16[[#This Row],[Column4]]="",Table16[[#This Row],[Column4]]=0),"",ROUND(Table16[[#This Row],[Column4]],2)),"") -> 
B137: 9000-3 | C137: Finish Hardware | G137: =IFERROR(IF(OR(Table16[[#This Row],[Column4]]="",Table16[[#This Row],[Column4]]=0),"",ROUND(Table16[[#This Row],[Column4]],2)),"") -> 
B138: 9000-4 | C138: Exterior Doors | G138: =IFERROR(IF(OR(Table16[[#This Row],[Column4]]="",Table16[[#This Row],[Column4]]=0),"",ROUND(Table16[[#This Row],[Column4]],2)),"") -> 
B139: 9000-5 | C139: Mirrors | G139: =IFERROR(IF(OR(Table16[[#This Row],[Column4]]="",Table16[[#This Row],[Column4]]=0),"",ROUND(Table16[[#This Row],[Column4]],2)),"") -> 
B140: 9000-6 | C140: Shower Doors | G140: =IFERROR(IF(OR(Table16[[#This Row],[Column4]]="",Table16[[#This Row],[Column4]]=0),"",ROUND(Table16[[#This Row],[Column4]],2)),"") -> 
B141: 9000-7 | C141: Cabinets | G141: =IFERROR(IF(OR(Table16[[#This Row],[Column4]]="",Table16[[#This Row],[Column4]]=0),"",ROUND(Table16[[#This Row],[Column4]],2)),"") -> 
B142: 9000-8 | C142: Countertops | G142: =IFERROR(IF(OR(Table16[[#This Row],[Column4]]="",Table16[[#This Row],[Column4]]=0),"",ROUND(Table16[[#This Row],[Column4]],2)),"") -> 
B143: 9000-9 | C143: Millwork | G143: =IFERROR(IF(OR(Table16[[#This Row],[Column4]]="",Table16[[#This Row],[Column4]]=0),"",ROUND(Table16[[#This Row],[Column4]],2)),"") -> 
B144: 9000-10 | C144: (Enter your line item here) | G144: =IFERROR(IF(OR(Table16[[#This Row],[Column4]]="",Table16[[#This Row],[Column4]]=0),"",ROUND(Table16[[#This Row],[Column4]],2)),"") -> 
B145: 9000-11 | C145: (Enter your line item here) | G145: =IFERROR(IF(OR(Table16[[#This Row],[Column4]]="",Table16[[#This Row],[Column4]]=0),"",ROUND(Table16[[#This Row],[Column4]],2)),"") -> 
C146: Total Finishes | E146: =G146 -> 0 | G146: =SUM(G135:G145) -> 0
C148: Flooring
B149: 10000-1 | C149: Tile | G149: =IFERROR(IF(OR(Table16[[#This Row],[Column4]]="",Table16[[#This Row],[Column4]]=0),"",ROUND(Table16[[#This Row],[Column4]],2)),"") -> 
B150: 10000-2 | C150: Marble | G150: =IFERROR(IF(OR(Table16[[#This Row],[Column4]]="",Table16[[#This Row],[Column4]]=0),"",ROUND(Table16[[#This Row],[Column4]],2)),"") -> 
B151: 10000-3 | C151: Wood Flooring | G151: =IFERROR(IF(OR(Table16[[#This Row],[Column4]]="",Table16[[#This Row],[Column4]]=0),"",ROUND(Table16[[#This Row],[Column4]],2)),"") -> 
B152: 10000-4 | C152: Carpet | G152: =IFERROR(IF(OR(Table16[[#This Row],[Column4]]="",Table16[[#This Row],[Column4]]=0),"",ROUND(Table16[[#This Row],[Column4]],2)),"") -> 
B153: 10000-5 | C153: Vinyl | G153: =IFERROR(IF(OR(Table16[[#This Row],[Column4]]="",Table16[[#This Row],[Column4]]=0),"",ROUND(Table16[[#This Row],[Column4]],2)),"") -> 
B154: 10000-6 | C154: (Enter your line item here) | G154: =IFERROR(IF(OR(Table16[[#This Row],[Column4]]="",Table16[[#This Row],[Column4]]=0),"",ROUND(Table16[[#This Row],[Column4]],2)),"") -> 
B155: 10000-7 | C155: (Enter your line item here) | G155: =IFERROR(IF(OR(Table16[[#This Row],[Column4]]="",Table16[[#This Row],[Column4]]=0),"",ROUND(Table16[[#This Row],[Column4]],2)),"") -> 
C156: Total Flooring | E156: =G156 -> 0 | G156: =SUM(G149:G155) -> 0
C158: Appliances
B159: 11000-1 | C159: Range | G159: =IFERROR(IF(OR(Table16[[#This Row],[Column4]]="",Table16[[#This Row],[Column4]]=0),"",ROUND(Table16[[#This Row],[Column4]],2)),"") -> 
B160: 11000-2 | C160: Cooktop | G160: =IFERROR(IF(OR(Table16[[#This Row],[Column4]]="",Table16[[#This Row],[Column4]]=0),"",ROUND(Table16[[#This Row],[Column4]],2)),"") -> 
B161: 11000-3 | C161: Microwave | G161: =IFERROR(IF(OR(Table16[[#This Row],[Column4]]="",Table16[[#This Row],[Column4]]=0),"",ROUND(Table16[[#This Row],[Column4]],2)),"") -> 
B162: 11000-4 | C162: Dishwasher | G162: =IFERROR(IF(OR(Table16[[#This Row],[Column4]]="",Table16[[#This Row],[Column4]]=0),"",ROUND(Table16[[#This Row],[Column4]],2)),"") -> 
B163: 11000-5 | C163: Refrigerator | G163: =IFERROR(IF(OR(Table16[[#This Row],[Column4]]="",Table16[[#This Row],[Column4]]=0),"",ROUND(Table16[[#This Row],[Column4]],2)),"") -> 
B164: 11000-6 | C164: Package | G164: =IFERROR(IF(OR(Table16[[#This Row],[Column4]]="",Table16[[#This Row],[Column4]]=0),"",ROUND(Table16[[#This Row],[Column4]],2)),"") -> 
B165: 11000-7 | C165: (Enter your line item here) | G165: =IFERROR(IF(OR(Table16[[#This Row],[Column4]]="",Table16[[#This Row],[Column4]]=0),"",ROUND(Table16[[#This Row],[Column4]],2)),"") -> 
B166: 11000-8 | C166: (Enter your line item here) | G166: =IFERROR(IF(OR(Table16[[#This Row],[Column4]]="",Table16[[#This Row],[Column4]]=0),"",ROUND(Table16[[#This Row],[Column4]],2)),"") -> 
C167: Total Appliances | E167: =G167 -> 0 | G167: =SUM(G159:G166) -> 0
C169: Final - Misc
B170: 12000-1 | C170: Final Clean | G170: =IFERROR(IF(OR(Table16[[#This Row],[Column4]]="",Table16[[#This Row],[Column4]]=0),"",ROUND(Table16[[#This Row],[Column4]],2)),"") -> 
B171: 12000-2 | C171: Staging | G171: =IFERROR(IF(OR(Table16[[#This Row],[Column4]]="",Table16[[#This Row],[Column4]]=0),"",ROUND(Table16[[#This Row],[Column4]],2)),"") -> 
B172: 12000-3 | C172: Contingency | G172: =IFERROR(IF(OR(Table16[[#This Row],[Column4]]="",Table16[[#This Row],[Column4]]=0),"",ROUND(Table16[[#This Row],[Column4]],2)),"") -> 
B173: 12000-4 | C173: (Enter your line item here) | G173: =IFERROR(IF(OR(Table16[[#This Row],[Column4]]="",Table16[[#This Row],[Column4]]=0),"",ROUND(Table16[[#This Row],[Column4]],2)),"") -> 
B174: 12000-5 | C174: (Enter your line item here) | G174: =IFERROR(IF(OR(Table16[[#This Row],[Column4]]="",Table16[[#This Row],[Column4]]=0),"",ROUND(Table16[[#This Row],[Column4]],2)),"") -> 
C175: Total Misc. | E175: =G175 -> 0 | G175: =SUM(G170:G174) -> 0
B177: *THESE ITEMS REQUIRE PERMITS IN MOST JURISDICTIONS. BORROWERS ARE REQUIRED TO ADHERE TO ALL LOCAL LAWS, CODES, REGULATIONS AND REQUIREMENTS AS EXPRESSED IN YOUR LOAN DOCUMENTS.

Sheet Budget Review (hidden)
M10: Budget Review
M13: Borrower Name:
M14: Property Address: | N14: =IFERROR('Construction Budget'!C21:D22,"") -> 
M16: Loan#:
M17: Date: | O17: Tier:
M18: Contractor Name:
M19: Underwriter:
N21: AREA REVIEWED | O21: APPROVED | P21: NOT APPROVED | Q21: EXCEPTION
N22: Property Description
N23: Scope of Work
N24: Cost Breakdown/Bid | R24: Status: | S24: =IF(RF_Status="","",RF_Status) -> Initial Budget
O27: Original Budget | P27: Recommended | Q27: Final Budget | R27: Difference | S27: Comments
O28: =SUM(AMT_OrigBudgetCatTotals) -> 0.00 | P28: =SUM(AMT_RecomBudgetCatTotals1) -> 0.00 | Q28: =SUM(AMT_FinalBudgetCatTotals1) -> 0.00 | R28: =SUM(AMT_AnalysisCatTotals1) -> 0.00
M31: =IF('Construction Budget'!B30="","",'Construction Budget'!B30) ->  | N31: =IF('Construction Budget'!C30="","",'Construction Budget'!C30) -> Soft Costs
M32: =IF('Construction Budget'!B32="","",'Construction Budget'!B32) -> 1000-2 | N32: =IF('Construction Budget'!C32="","",'Construction Budget'!C32) -> Temp Gas* | R32: =IF(Q32="","",Q32-P32) -> 
M33: =IF('Construction Budget'!B33="","",'Construction Budget'!B33) -> 1000-3 | N33: =IF('Construction Budget'!C33="","",'Construction Budget'!C33) -> Temp Power*
M34: =IF('Construction Budget'!B34="","",'Construction Budget'!B34) -> 1000-4 | N34: =IF('Construction Budget'!C34="","",'Construction Budget'!C34) -> Temp Toilet
M35: =IF('Construction Budget'!B35="","",'Construction Budget'!B35) -> 1000-5 | N35: =IF('Construction Budget'!C35="","",'Construction Budget'!C35) -> Architecutral Fees
M36: =IF('Construction Budget'!B36="","",'Construction Budget'!B36) -> 1000-6 | N36: =IF('Construction Budget'!C36="","",'Construction Budget'!C36) -> Engineering Fees
M37: =IF('Construction Budget'!B37="","",'Construction Budget'!B37) -> 1000-7 | N37: =IF('Construction Budget'!C37="","",'Construction Budget'!C37) -> Building Permit*
M38: =IF('Construction Budget'!B38="","",'Construction Budget'!B38) -> 1000-8 | N38: =IF('Construction Budget'!C38="","",'Construction Budget'!C38) -> Impact Fees
M39: =IF('Construction Budget'!B39="","",'Construction Budget'!B39) -> 1000-9 | N39: =IF('Construction Budget'!C39="","",'Construction Budget'!C39) -> Survey
M40: =IF('Construction Budget'!B40="","",'Construction Budget'!B40) -> 1000-10 | N40: =IF('Construction Budget'!C40="","",'Construction Budget'!C40) -> Survey/Drawings/Plans*
M41: =IF('Construction Budget'!B41="","",'Construction Budget'!B41) -> 1000-11 | N41: =IF('Construction Budget'!C41="","",'Construction Budget'!C41) -> Erosion Fence
M42: =IF('Construction Budget'!B42="","",'Construction Budget'!B42) -> 1000-12 | N42: =IF('Construction Budget'!C42="","",'Construction Budget'!C42) -> (Enter your line item here)
M43: =IF('Construction Budget'!B43="","",'Construction Budget'!B43) -> 1000-13 | N43: =IF('Construction Budget'!C43="","",'Construction Budget'!C43) -> (Enter your line item here)
M44: =IF('Construction Budget'!B44="","",'Construction Budget'!B44) ->  | N44: =IF('Construction Budget'!C44="","",'Construction Budget'!C44) -> Total Soft Costs | R44: =SUM(R32:R43) -> 0.00
M45: =IF('Construction Budget'!B45="","",'Construction Budget'!B45) ->  | N45: =IF('Construction Budget'!C45="","",'Construction Budget'!C45) -> 
M46: =IF('Construction Budget'!B46="","",'Construction Budget'!B46) ->  | N46: =IF('Construction Budget'!C46="","",'Construction Budget'!C46) -> Demolition- Trashout
M47: =IF('Construction Budget'!B47="","",'Construction Budget'!B47) -> 2000-1 | N47: =IF('Construction Budget'!C47="","",'Construction Budget'!C47) -> Demolition*
M48: =IF('Construction Budget'!B48="","",'Construction Budget'!B48) -> 2000-2 | N48: =IF('Construction Budget'!C48="","",'Construction Budget'!C48) -> Trashout
M49: =IF('Construction Budget'!B49="","",'Construction Budget'!B49) -> 2000-3 | N49: =IF('Construction Budget'!C49="","",'Construction Budget'!C49) -> Dumpster
M50: =IF('Construction Budget'!B50="","",'Construction Budget'!B50) -> 2000-4 | N50: =IF('Construction Budget'!C50="","",'Construction Budget'!C50) -> (Enter your line item here)
M51: =IF('Construction Budget'!B51="","",'Construction Budget'!B51) -> 2000-5 | N51: =IF('Construction Budget'!C51="","",'Construction Budget'!C51) -> (Enter your line item here)
M52: =IF('Construction Budget'!B52="","",'Construction Budget'!B52) ->  | N52: =IF('Construction Budget'!C52="","",'Construction Budget'!C52) -> Total Trashout | R52: =SUM(R47:R51) -> 0.00
M53: =IF('Construction Budget'!B53="","",'Construction Budget'!B53) ->  | N53: =IF('Construction Budget'!C53="","",'Construction Budget'!C53) -> 
M54: =IF('Construction Budget'!B54="","",'Construction Budget'!B54) ->  | N54: =IF('Construction Budget'!C54="","",'Construction Budget'!C54) -> Site Work
M55: =IF('Construction Budget'!B55="","",'Construction Budget'!B55) -> 3000-1 | N55: =IF('Construction Budget'!C55="","",'Construction Budget'!C55) -> Grading*
M56: =IF('Construction Budget'!B56="","",'Construction Budget'!B56) -> 3000-2 | N56: =IF('Construction Budget'!C56="","",'Construction Budget'!C56) -> Underground *
M57: =IF('Construction Budget'!B57="","",'Construction Budget'!B57) -> 3000-3 | N57: =IF('Construction Budget'!C57="","",'Construction Budget'!C57) -> Conduit
M58: =IF('Construction Budget'!B58="","",'Construction Budget'!B58) -> 3000-4 | N58: =IF('Construction Budget'!C58="","",'Construction Budget'!C58) -> Water Lines*
M59: =IF('Construction Budget'!B59="","",'Construction Budget'!B59) -> 3000-5 | N59: =IF('Construction Budget'!C59="","",'Construction Budget'!C59) -> Septic *
M60: =IF('Construction Budget'!B60="","",'Construction Budget'!B60) -> 3000-6 | N60: =IF('Construction Budget'!C60="","",'Construction Budget'!C60) -> Sewer Lines*
M61: =IF('Construction Budget'!B61="","",'Construction Budget'!B61) -> 3000-7 | N61: =IF('Construction Budget'!C61="","",'Construction Budget'!C61) -> Landscape
M62: =IF('Construction Budget'!B62="","",'Construction Budget'!B62) -> 3000-8 | N62: =IF('Construction Budget'!C62="","",'Construction Budget'!C62) -> Fence
M63: =IF('Construction Budget'!B63="","",'Construction Budget'!B63) -> 3000-9 | N63: =IF('Construction Budget'!C63="","",'Construction Budget'!C63) -> Concrete
M64: =IF('Construction Budget'!B64="","",'Construction Budget'!B64) -> 3000-10 | N64: =IF('Construction Budget'!C64="","",'Construction Budget'!C64) -> Asphalt
M65: =IF('Construction Budget'!B65="","",'Construction Budget'!B65) -> 3000-11 | N65: =IF('Construction Budget'!C65="","",'Construction Budget'!C65) -> Hardscape
M66: =IF('Construction Budget'!B66="","",'Construction Budget'!B66) -> 3000-12 | N66: =IF('Construction Budget'!C66="","",'Construction Budget'!C66) -> Softscape
M67: =IF('Construction Budget'!B67="","",'Construction Budget'!B67) -> 3000-13 | N67: =IF('Construction Budget'!C67="","",'Construction Budget'!C67) -> Pool/Spa
M68: =IF('Construction Budget'!B68="","",'Construction Budget'!B68) -> 3000-14 | N68: =IF('Construction Budget'!C68="","",'Construction Budget'!C68) -> (Enter your line item here)
M69: =IF('Construction Budget'!B69="","",'Construction Budget'!B69) -> 3000-15 | N69: =IF('Construction Budget'!C69="","",'Construction Budget'!C69) -> (Enter your line item here)
M70: =IF('Construction Budget'!B70="","",'Construction Budget'!B70) ->  | N70: =IF('Construction Budget'!C70="","",'Construction Budget'!C70) -> Total Yard-Landscape | R70: =SUM(R55:R69) -> 0.00
M71: =IF('Construction Budget'!B71="","",'Construction Budget'!B71) ->  | N71: =IF('Construction Budget'!C71="","",'Construction Budget'!C71) -> 
M72: =IF('Construction Budget'!B72="","",'Construction Budget'!B72) ->  | N72: =IF('Construction Budget'!C72="","",'Construction Budget'!C72) -> Foundation
M73: =IF('Construction Budget'!B73="","",'Construction Budget'!B73) -> 4000-1 | N73: =IF('Construction Budget'!C73="","",'Construction Budget'!C73) -> Footings*
M74: =IF('Construction Budget'!B74="","",'Construction Budget'!B74) -> 4000-2 | N74: =IF('Construction Budget'!C74="","",'Construction Budget'!C74) -> PreTreat
M75: =IF('Construction Budget'!B75="","",'Construction Budget'!B75) -> 4000-3 | N75: =IF('Construction Budget'!C75="","",'Construction Budget'!C75) -> Foundation - Post Tension Cables
M76: =IF('Construction Budget'!B76="","",'Construction Budget'!B76) -> 4000-4 | N76: =IF('Construction Budget'!C76="","",'Construction Budget'!C76) -> Foundation *
M77: =IF('Construction Budget'!B77="","",'Construction Budget'!B77) -> 4000-5 | N77: =IF('Construction Budget'!C77="","",'Construction Budget'!C77) -> Excavation*
M78: =IF('Construction Budget'!B78="","",'Construction Budget'!B78) -> 4000-6 | N78: =IF('Construction Budget'!C78="","",'Construction Budget'!C78) -> Pour
M79: =IF('Construction Budget'!B79="","",'Construction Budget'!B79) -> 4000-7 | N79: =IF('Construction Budget'!C79="","",'Construction Budget'!C79) -> Repair
M80: =IF('Construction Budget'!B80="","",'Construction Budget'!B80) -> 4000-8 | N80: =IF('Construction Budget'!C80="","",'Construction Budget'!C80) -> (Enter your line item here)
M81: =IF('Construction Budget'!B81="","",'Construction Budget'!B81) -> 4000-9 | N81: =IF('Construction Budget'!C81="","",'Construction Budget'!C81) -> (Enter your line item here)
M82: =IF('Construction Budget'!B82="","",'Construction Budget'!B82) ->  | N82: =IF('Construction Budget'!C82="","",'Construction Budget'!C82) -> Total Foundation | R82: =SUM(R73:R81) -> 0.00
M83: =IF('Construction Budget'!B83="","",'Construction Budget'!B83) ->  | N83: =IF('Construction Budget'!C83="","",'Construction Budget'!C83) -> 
M84: =IF('Construction Budget'!B84="","",'Construction Budget'!B84) ->  | N84: =IF('Construction Budget'!C84="","",'Construction Budget'!C84) -> Structure
M85: =IF('Construction Budget'!B85="","",'Construction Budget'!B85) -> 5000-1 | N85: =IF('Construction Budget'!C85="","",'Construction Budget'!C85) -> Framing *
M86: =IF('Construction Budget'!B86="","",'Construction Budget'!B86) -> 5000-2 | N86: =IF('Construction Budget'!C86="","",'Construction Budget'!C86) -> Roof Trusses
M87: =IF('Construction Budget'!B87="","",'Construction Budget'!B87) -> 5000-3 | N87: =IF('Construction Budget'!C87="","",'Construction Budget'!C87) -> Windows
M88: =IF('Construction Budget'!B88="","",'Construction Budget'!B88) -> 5000-4 | N88: =IF('Construction Budget'!C88="","",'Construction Budget'!C88) -> Joist System
M89: =IF('Construction Budget'!B89="","",'Construction Budget'!B89) -> 5000-5 | N89: =IF('Construction Budget'!C89="","",'Construction Budget'!C89) -> (Enter your line item here)
M90: =IF('Construction Budget'!B90="","",'Construction Budget'!B90) -> 5000-6 | N90: =IF('Construction Budget'!C90="","",'Construction Budget'!C90) -> (Enter your line item here)
M91: =IF('Construction Budget'!B91="","",'Construction Budget'!B91) ->  | N91: =IF('Construction Budget'!C91="","",'Construction Budget'!C91) -> Total Structure | R91: =SUM(R85:R90) -> 0.00
M92: =IF('Construction Budget'!B92="","",'Construction Budget'!B92) ->  | N92: =IF('Construction Budget'!C92="","",'Construction Budget'!C92) -> 
M93: =IF('Construction Budget'!B93="","",'Construction Budget'!B93) ->  | N93: =IF('Construction Budget'!C93="","",'Construction Budget'!C93) -> Exterior | R93: =IF(Q93="","",Q93-P93) -> 
M94: =IF('Construction Budget'!B94="","",'Construction Budget'!B94) -> 6000-1 | N94: =IF('Construction Budget'!C94="","",'Construction Budget'!C94) -> Roofing*
M95: =IF('Construction Budget'!B95="","",'Construction Budget'!B95) -> 6000-2 | N95: =IF('Construction Budget'!C95="","",'Construction Budget'!C95) -> Flashing
M96: =IF('Construction Budget'!B96="","",'Construction Budget'!B96) -> 6000-3 | N96: =IF('Construction Budget'!C96="","",'Construction Budget'!C96) -> Siding
M97: =IF('Construction Budget'!B97="","",'Construction Budget'!B97) -> 6000-4 | N97: =IF('Construction Budget'!C97="","",'Construction Budget'!C97) -> Stucco
M98: =IF('Construction Budget'!B98="","",'Construction Budget'!B98) -> 6000-5 | N98: =IF('Construction Budget'!C98="","",'Construction Budget'!C98) -> Garage Door
M99: =IF('Construction Budget'!B99="","",'Construction Budget'!B99) -> 6000-6 | N99: =IF('Construction Budget'!C99="","",'Construction Budget'!C99) -> Gutters/Soffit/Fascia
M100: =IF('Construction Budget'!B100="","",'Construction Budget'!B100) -> 6000-7 | N100: =IF('Construction Budget'!C100="","",'Construction Budget'!C100) -> Solar
M101: =IF('Construction Budget'!B101="","",'Construction Budget'!B101) -> 6000-8 | N101: =IF('Construction Budget'!C101="","",'Construction Budget'!C101) -> Deck
M102: =IF('Construction Budget'!B102="","",'Construction Budget'!B102) -> 6000-9 | N102: =IF('Construction Budget'!C102="","",'Construction Budget'!C102) -> Driveway
M103: =IF('Construction Budget'!B103="","",'Construction Budget'!B103) -> 6000-10 | N103: =IF('Construction Budget'!C103="","",'Construction Budget'!C103) -> Masonry Veneer
M104: =IF('Construction Budget'!B104="","",'Construction Budget'!B104) -> 6000-11 | N104: =IF('Construction Budget'!C104="","",'Construction Budget'!C104) -> Painting - Exterior
M105: =IF('Construction Budget'!B105="","",'Construction Budget'!B105) -> 6000-12 | N105: =IF('Construction Budget'!C105="","",'Construction Budget'!C105) -> Porch
M106: =IF('Construction Budget'!B106="","",'Construction Budget'!B106) -> 6000-13 | N106: =IF('Construction Budget'!C106="","",'Construction Budget'!C106) -> (Enter your line item here)
M107: =IF('Construction Budget'!B107="","",'Construction Budget'!B107) -> 6000-14 | N107: =IF('Construction Budget'!C107="","",'Construction Budget'!C107) -> (Enter your line item here)
M108: =IF('Construction Budget'!B108="","",'Construction Budget'!B108) ->  | N108: =IF('Construction Budget'!C108="","",'Construction Budget'!C108) -> Total Exterior | R108: =SUM(R94:R107) -> 0.00
M109: =IF('Construction Budget'!B109="","",'Construction Budget'!B109) ->  | N109: =IF('Construction Budget'!C109="","",'Construction Budget'!C109) -> 
M110: =IF('Construction Budget'!B110="","",'Construction Budget'!B110) ->  | N110: =IF('Construction Budget'!C110="","",'Construction Budget'!C110) -> Systems
M111: =IF('Construction Budget'!B111="","",'Construction Budget'!B111) -> 7000-1 | N111: =IF('Construction Budget'!C111="","",'Construction Budget'!C111) -> Rough HVAC*
M112: =IF('Construction Budget'!B112="","",'Construction Budget'!B112) -> 7000-2 | N112: =IF('Construction Budget'!C112="","",'Construction Budget'!C112) -> Final HVAC
M113: =IF('Construction Budget'!B113="","",'Construction Budget'!B113) -> 7000-3 | N113: =IF('Construction Budget'!C113="","",'Construction Budget'!C113) -> Underslab Plumbing
M114: =IF('Construction Budget'!B114="","",'Construction Budget'!B114) -> 7000-4 | N114: =IF('Construction Budget'!C114="","",'Construction Budget'!C114) -> Rough Plumbing*
M115: =IF('Construction Budget'!B115="","",'Construction Budget'!B115) -> 7000-5 | N115: =IF('Construction Budget'!C115="","",'Construction Budget'!C115) -> Plumbing - Fixtures
M116: =IF('Construction Budget'!B116="","",'Construction Budget'!B116) -> 7000-6 | N116: =IF('Construction Budget'!C116="","",'Construction Budget'!C116) -> Fire Suppression
M117: =IF('Construction Budget'!B117="","",'Construction Budget'!B117) -> 7000-7 | N117: =IF('Construction Budget'!C117="","",'Construction Budget'!C117) -> Underslab Electrical
M118: =IF('Construction Budget'!B118="","",'Construction Budget'!B118) -> 7000-8 | N118: =IF('Construction Budget'!C118="","",'Construction Budget'!C118) -> Rough Electrical*
M119: =IF('Construction Budget'!B119="","",'Construction Budget'!B119) -> 7000-9 | N119: =IF('Construction Budget'!C119="","",'Construction Budget'!C119) -> Electrical Fixtures
M120: =IF('Construction Budget'!B120="","",'Construction Budget'!B120) -> 7000-10 | N120: =IF('Construction Budget'!C120="","",'Construction Budget'!C120) -> Water Heater
M121: =IF('Construction Budget'!B121="","",'Construction Budget'!B121) -> 7000-11 | N121: =IF('Construction Budget'!C121="","",'Construction Budget'!C121) -> (Enter your line item here)
M122: =IF('Construction Budget'!B122="","",'Construction Budget'!B122) -> 7000-12 | N122: =IF('Construction Budget'!C122="","",'Construction Budget'!C122) -> (Enter your line item here)
M123: =IF('Construction Budget'!B123="","",'Construction Budget'!B123) ->  | N123: =IF('Construction Budget'!C123="","",'Construction Budget'!C123) -> Total Systems | R123: =SUM(R111:R122) -> 0.00
M124: =IF('Construction Budget'!B124="","",'Construction Budget'!B124) ->  | N124: =IF('Construction Budget'!C124="","",'Construction Budget'!C124) -> 
M125: =IF('Construction Budget'!B125="","",'Construction Budget'!B125) ->  | N125: =IF('Construction Budget'!C125="","",'Construction Budget'!C125) -> Interior
M126: =IF('Construction Budget'!B126="","",'Construction Budget'!B126) -> 8000-1 | N126: =IF('Construction Budget'!C126="","",'Construction Budget'!C126) -> Fireplace
M127: =IF('Construction Budget'!B127="","",'Construction Budget'!B127) -> 8000-2 | N127: =IF('Construction Budget'!C127="","",'Construction Budget'!C127) -> Insulation
M128: =IF('Construction Budget'!B128="","",'Construction Budget'!B128) -> 8000-3 | N128: =IF('Construction Budget'!C128="","",'Construction Budget'!C128) -> Drywall*
M129: =IF('Construction Budget'!B129="","",'Construction Budget'!B129) -> 8000-4 | N129: =IF('Construction Budget'!C129="","",'Construction Budget'!C129) -> Paint-Interior
M130: =IF('Construction Budget'!B130="","",'Construction Budget'!B130) -> 8000-5 | N130: =IF('Construction Budget'!C130="","",'Construction Budget'!C130) -> (Enter your line item here)
M131: =IF('Construction Budget'!B131="","",'Construction Budget'!B131) -> 8000-6 | N131: =IF('Construction Budget'!C131="","",'Construction Budget'!C131) -> (Enter your line item here)
M132: =IF('Construction Budget'!B132="","",'Construction Budget'!B132) ->  | N132: =IF('Construction Budget'!C132="","",'Construction Budget'!C132) -> Total Interior | R132: =SUM(R126:R131) -> 0.00
M133: =IF('Construction Budget'!B133="","",'Construction Budget'!B133) ->  | N133: =IF('Construction Budget'!C133="","",'Construction Budget'!C133) -> 
M134: =IF('Construction Budget'!B134="","",'Construction Budget'!B134) ->  | N134: =IF('Construction Budget'!C134="","",'Construction Budget'!C134) -> Finishes
M135: =IF('Construction Budget'!B135="","",'Construction Budget'!B135) -> 9000-1 | N135: =IF('Construction Budget'!C135="","",'Construction Budget'!C135) -> Finish Carpentry
M136: =IF('Construction Budget'!B136="","",'Construction Budget'!B136) -> 9000-2 | N136: =IF('Construction Budget'!C136="","",'Construction Budget'!C136) -> Interior Doors
M137: =IF('Construction Budget'!B137="","",'Construction Budget'!B137) -> 9000-3 | N137: =IF('Construction Budget'!C137="","",'Construction Budget'!C137) -> Finish Hardware
M138: =IF('Construction Budget'!B138="","",'Construction Budget'!B138) -> 9000-4 | N138: =IF('Construction Budget'!C138="","",'Construction Budget'!C138) -> Exterior Doors
M139: =IF('Construction Budget'!B139="","",'Construction Budget'!B139) -> 9000-5 | N139: =IF('Construction Budget'!C139="","",'Construction Budget'!C139) -> Mirrors
M140: =IF('Construction Budget'!B140="","",'Construction Budget'!B140) -> 9000-6 | N140: =IF('Construction Budget'!C140="","",'Construction Budget'!C140) -> Shower Doors
M141: =IF('Construction Budget'!B141="","",'Construction Budget'!B141) -> 9000-7 | N141: =IF('Construction Budget'!C141="","",'Construction Budget'!C141) -> Cabinets
M142: =IF('Construction Budget'!B142="","",'Construction Budget'!B142) -> 9000-8 | N142: =IF('Construction Budget'!C142="","",'Construction Budget'!C142) -> Countertops
M143: =IF('Construction Budget'!B143="","",'Construction Budget'!B143) -> 9000-9 | N143: =IF('Construction Budget'!C143="","",'Construction Budget'!C143) -> Millwork
M144: =IF('Construction Budget'!B144="","",'Construction Budget'!B144) -> 9000-10 | N144: =IF('Construction Budget'!C144="","",'Construction Budget'!C144) -> (Enter your line item here)
M145: =IF('Construction Budget'!B145="","",'Construction Budget'!B145) -> 9000-11 | N145: =IF('Construction Budget'!C145="","",'Construction Budget'!C145) -> (Enter your line item here)
M146: =IF('Construction Budget'!B146="","",'Construction Budget'!B146) ->  | N146: =IF('Construction Budget'!C146="","",'Construction Budget'!C146) -> Total Finishes | R146: =SUM(R135:R145) -> 0.00
M147: =IF('Construction Budget'!B147="","",'Construction Budget'!B147) ->  | N147: =IF('Construction Budget'!C147="","",'Construction Budget'!C147) -> 
M148: =IF('Construction Budget'!B148="","",'Construction Budget'!B148) ->  | N148: =IF('Construction Budget'!C148="","",'Construction Budget'!C148) -> Flooring | R148: =IF(Q148="","",Q148-P148) -> 
M149: =IF('Construction Budget'!B149="","",'Construction Budget'!B149) -> 10000-1 | N149: =IF('Construction Budget'!C149="","",'Construction Budget'!C149) -> Tile
M150: =IF('Construction Budget'!B150="","",'Construction Budget'!B150) -> 10000-2 | N150: =IF('Construction Budget'!C150="","",'Construction Budget'!C150) -> Marble
M151: =IF('Construction Budget'!B151="","",'Construction Budget'!B151) -> 10000-3 | N151: =IF('Construction Budget'!C151="","",'Construction Budget'!C151) -> Wood Flooring
M152: =IF('Construction Budget'!B152="","",'Construction Budget'!B152) -> 10000-4 | N152: =IF('Construction Budget'!C152="","",'Construction Budget'!C152) -> Carpet
M153: =IF('Construction Budget'!B153="","",'Construction Budget'!B153) -> 10000-5 | N153: =IF('Construction Budget'!C153="","",'Construction Budget'!C153) -> Vinyl
M154: =IF('Construction Budget'!B154="","",'Construction Budget'!B154) -> 10000-6 | N154: =IF('Construction Budget'!C154="","",'Construction Budget'!C154) -> (Enter your line item here)
M155: =IF('Construction Budget'!B155="","",'Construction Budget'!B155) -> 10000-7 | N155: =IF('Construction Budget'!C155="","",'Construction Budget'!C155) -> (Enter your line item here)
M156: =IF('Construction Budget'!B156="","",'Construction Budget'!B156) ->  | N156: =IF('Construction Budget'!C156="","",'Construction Budget'!C156) -> Total Flooring | R156: =SUM(R149:R155) -> 0.00
M157: =IF('Construction Budget'!B157="","",'Construction Budget'!B157) ->  | N157: =IF('Construction Budget'!C157="","",'Construction Budget'!C157) -> 
M158: =IF('Construction Budget'!B158="","",'Construction Budget'!B158) ->  | N158: =IF('Construction Budget'!C158="","",'Construction Budget'!C158) -> Appliances
M159: =IF('Construction Budget'!B159="","",'Construction Budget'!B159) -> 11000-1 | N159: =IF('Construction Budget'!C159="","",'Construction Budget'!C159) -> Range
M160: =IF('Construction Budget'!B160="","",'Construction Budget'!B160) -> 11000-2 | N160: =IF('Construction Budget'!C160="","",'Construction Budget'!C160) -> Cooktop
M161: =IF('Construction Budget'!B161="","",'Construction Budget'!B161) -> 11000-3 | N161: =IF('Construction Budget'!C161="","",'Construction Budget'!C161) -> Microwave
M162: =IF('Construction Budget'!B162="","",'Construction Budget'!B162) -> 11000-4 | N162: =IF('Construction Budget'!C162="","",'Construction Budget'!C162) -> Dishwasher
M163: =IF('Construction Budget'!B163="","",'Construction Budget'!B163) -> 11000-5 | N163: =IF('Construction Budget'!C163="","",'Construction Budget'!C163) -> Refrigerator
M164: =IF('Construction Budget'!B164="","",'Construction Budget'!B164) -> 11000-6 | N164: =IF('Construction Budget'!C164="","",'Construction Budget'!C164) -> Package
M165: =IF('Construction Budget'!B165="","",'Construction Budget'!B165) -> 11000-7 | N165: =IF('Construction Budget'!C165="","",'Construction Budget'!C165) -> (Enter your line item here)
M166: =IF('Construction Budget'!B166="","",'Construction Budget'!B166) -> 11000-8 | N166: =IF('Construction Budget'!C166="","",'Construction Budget'!C166) -> (Enter your line item here)
M167: =IF('Construction Budget'!B167="","",'Construction Budget'!B167) ->  | N167: =IF('Construction Budget'!C167="","",'Construction Budget'!C167) -> Total Appliances | R167: =SUM(R159:R166) -> 0.00
M168: =IF('Construction Budget'!B168="","",'Construction Budget'!B168) ->  | N168: =IF('Construction Budget'!C168="","",'Construction Budget'!C168) -> 
M169: =IF('Construction Budget'!B169="","",'Construction Budget'!B169) ->  | N169: =IF('Construction Budget'!C169="","",'Construction Budget'!C169) -> Final - Misc
M170: =IF('Construction Budget'!B170="","",'Construction Budget'!B170) -> 12000-1 | N170: =IF('Construction Budget'!C170="","",'Construction Budget'!C170) -> Final Clean
M171: =IF('Construction Budget'!B171="","",'Construction Budget'!B171) -> 12000-2 | N171: =IF('Construction Budget'!C171="","",'Construction Budget'!C171) -> Staging
M172: =IF('Construction Budget'!B172="","",'Construction Budget'!B172) -> 12000-3 | N172: =IF('Construction Budget'!C172="","",'Construction Budget'!C172) -> Contingency
M173: =IF('Construction Budget'!B173="","",'Construction Budget'!B173) -> 12000-4 | N173: =IF('Construction Budget'!C173="","",'Construction Budget'!C173) -> (Enter your line item here)
M174: =IF('Construction Budget'!B174="","",'Construction Budget'!B174) -> 12000-5 | N174: =IF('Construction Budget'!C174="","",'Construction Budget'!C174) -> (Enter your line item here)
M175: =IF('Construction Budget'!B175="","",'Construction Budget'!B175) ->  | N175: =IF('Construction Budget'!C175="","",'Construction Budget'!C175) -> Total Misc. | R175: =SUM(R170:R174) -> 0.00
M178: Rehab Project Meets Minimum Guidelines
M179: =IF(RF_Analyst="","",RF_Analyst) ->  | O179: =IF(RF_Date_Approved="","",RF_Date_Approved) -> 
M180: Analyst Signature/Title | O180: Date
M182: Supervisor Signature/Title | O182: Date

Sheet Reference (hidden)
F2: Approvals:
F3: 1 | G3: FALSE
F4: 2 | G4: FALSE
F5: 3 | G5: FALSE
F6: 4 | G6: TRUE
F8: RF_CountApprovals | G8: =COUNTIF(G3:G6,TRUE) -> 1
F10: RF_Status | G10: Initial Budget
F12: RF_Analyst
F13: RF_Date_Approved
